Cogmind - Beta 13 @@@ ROGUE MODE // 2024.04.18 @ 23:44:17 Player: GregoriusTechneticies Result: Destroyed by H-61 Shepherd with Heavy Assault Cannon Performance ------------- Evolutions (2) 1000 Regions Visited (3) 600 Robots Destroyed (51) 255 Value Destroyed (822) 822 Prototype IDs (0) 0 Alien Tech Used (0) 0 Bonus (86) 86 TOTAL SCORE: 2763 Bonus ------- High Alert Combat Kills 86 Cogmind --------- Core Integrity 0/550 Matter 159/300 Energy 98/100 System Corruption 0% Temperature Cool (9) Movement Core (50) Location -8/Materials Parts ------- > --- POWER (1) -------- (None) > --- PROPULSION (2) --- (None) > --- UTILITY (6) ------ Visual Processing Unit Improved Terrain Scan Processor Seismic Detector > --- WEAPON (2) ------- (None) > --- INVENTORY (5) ---- Light Nuclear Core Compact Battery (200) High-capacity Matter Pod (200) Seismic Detector Heavy Mace Peak State ------------ > --- POWER ------------ Light Deuterium Engine > --- PROPULSION ------- Wheel Wheel > --- UTILITY ---------- Visual Processing Unit Sensor Array Improved Signal Interpreter Improved Terrain Scan Processor Seismic Detector Improved Utility Shielding > --- WEAPON ----------- Autogun Gauss Rifle > --- INVENTORY -------- Light Nuclear Core Compact Battery High-capacity Matter Pod Seismic Detector Heavy Mace [Rating: 25] Favorites ----------- Power Light Nuclear Core Engine Light Ion Engine Power Core Light Nuclear Core Propulsion Wheel Wheel Wheel Utility Seismic Detector Device Seismic Detector Storage Compact Battery Processor Visual Processing Unit Protection Improved Utility Shielding Weapon Autogun Ballistic Gun Autogun Special Weapon Mining Laser Build | -11 -10 -9 -8 ------- Run | Yrd Mat Mat Mat Slots Evolved 4 | . . 2 2 Power . | . . . . Propulsion . | . . . . Utility 4 | . . 2 2 Weapon . | . . . . Parts Attached 51 | 10 1 10 30 Power 7 | 1 . 2 4 Engine 4 | 1 . 1 2 Core 3 | . . 1 2 Reactor . | . . . . Propulsion 11 | 2 . . 9 Treads . | . . . . Leg . | . . . . Wheel 11 | 2 . . 9 Hover . | . . . . Flight . | . . . . Utility 19 | 5 . 4 10 Device 11 | 5 . 1 5 Storage 1 | . . . 1 Processor 4 | . . 1 3 Hackware . | . . . . Protection 3 | . . 2 1 Artifact . | . . . . Weapon 14 | 2 1 4 7 Energy Gun . | . . . . Energy Cannon . | . . . . Ballistic Gun 12 | 2 . 3 7 Ballistic Cannon . | . . . . Launcher . | . . . . Special Weapon 2 | . 1 1 . Impact Weapon . | . . . . Slashing Weapon . | . . . . Piercing Weapon . | . . . . Special Melee Weapon . | . . . . Unidentified Prototypes . | . . . . Parts Lost 8 | . . . 8 Power 1 | . . . 1 Propulsion 4 | . . . 4 Utility 2 | . . . 2 Weapon 1 | . . . 1 Highest Loss Streak 6 | . . . 6 To Critical Strikes . | . . . . Average Slot Usage (%) 94 | . 100 87 95 Engine 4 | . 14 6 2 Core 5 | . . 4 5 Wheel 18 | . 28 22 16 Device 24 | . 28 22 24 Processor 15 | . . 2 19 Protection 6 | . . 7 6 Ballistic Gun 17 | . 17 18 17 Special Weapon 1 | . 10 3 . Naked Turns . | . . . . Heaviest Build 19 | 8 8 19 17 Greatest Support 29 | 20 20 20 29 Greatest Overweight (x) 1 | . . . 1 Average Overweight (x) . | . . . . Largest Inventory Capacity 5 | 5 5 5 5 Average Capacity 5 | 5 5 5 5 Most Carried 5 | 5 5 5 5 Average Carried 4 | 3 5 4 5 Final Capacity 5 | 5 5 5 5 Final Carried 5 | 5 5 5 5 Class Distribution -------------------- 61% | Scavenger-Mutant 19% | Scavenger-Skirmisher 18% | Mutant Dominant Class ---------------- Scavenger-Mutant | -10/Materials Scavenger-Mutant | -9/Materials Scavenger-Mutant | -8/Materials Resources | -11 -10 -9 -8 ----------- Run | Yrd Mat Mat Mat Matter Collected 1657 | 399 263 83 912 Remotely . | . . . . Salvage Created 1612 | 303 . 171 1138 Parts 135 | 33 . 11 91 Haulers Intercepted . | . . . . Recyclers Shooed 1 | . . 1 . Parts Field Recycled . | . . . . Retrieved Matter . | . . . . Parts Self-Destructed . | . . . . Prevented . | . . . . Kills | -11 -10 -9 -8 ------- Run | Yrd Mat Mat Mat Combat Hostiles Destroyed 22 | . . 1 21 Guns 22 | . . 1 21 Classes Destroyed 10 | 3 . 2 5 Worker 6 | 2 . . 4 Builder 2 | . . . 2 Tunneler 12 | 9 . . 3 Recycler 5 | 1 . 1 3 Mechanic 1 | . . . 1 Watcher 3 | . . 1 2 Swarmer 9 | . . . 9 Cutter 4 | . . . 4 Sentry 7 | . . 1 6 Hunter 2 | . . . 2 Best Kill Streak 7 | 3 . 2 7 Combat Bots Only 7 | . . 1 7 Max Kills in Single Turn 2 | 1 . 1 2 Gunslinging 1 | . . . 1 Exploded . | . . . . Melee . | . . . . Uniques/NPCs Destroyed . | . . . . Combat | -11 -10 -9 -8 -------- Run | Yrd Mat Mat Mat Hostile Shots Fired 119 | . . 2 117 Missed 22 | . . 1 21 Damage Taken 1512 | . . 16 1496 Core 601 | . . . 601 Absorbed by Shields . | . . . . Redirected to Shielding 43 | . . . 43 Core Remaining (%) 100 | 100 100 100 . Volleys Fired 152 | 38 6 13 95 Largest 2 | 2 1 2 2 Hottest 100 | 40 100 100 53 Shots Fired 282 | 76 6 21 179 Gun 271 | 76 . 16 179 Cannon . | . . . . Launcher . | . . . . Special 11 | . 6 5 . Kinetic 271 | 76 . 16 179 Thermal 11 | . 6 5 . Explosive . | . . . . Electromagnetic . | . . . . Robot Hit Streak 10 | 6 . 5 10 Robot Miss Streak 6 | 4 . 2 6 Penetration Max 1 | . . . 1 Secondary Targets 4 | . . . 4 Max Gunslinging Chain 1 | . . . 1 Shots Hit Robots 164 | 45 . 9 110 Core Hits 75 | 17 . 5 53 Critical Kills 1 | 1 . . . Critical Parts Destroyed 2 | . . . 2 Critical Strikes 3 | 1 . . 2 Destroy 3 | 1 . . 2 Melee Attacks . | . . . . Impact . | . . . . Slashing . | . . . . Piercing . | . . . . Sneak Attacks . | . . . . Combat Hostiles . | . . . . Follow-up Attacks . | . . . . Damage Inflicted 2347 | 523 . 113 1711 Guns 2347 | 523 . 113 1711 Cannons . | . . . . Explosions . | . . . . Melee . | . . . . Ramming . | . . . . Kinetic 2347 | 523 . 113 1711 Thermal . | . . . . Explosive . | . . . . Electromagnetic . | . . . . Impact . | . . . . Slashing . | . . . . Piercing . | . . . . Highest Corruption . | . . . . Average Corruption . | . . . . Corruption Purged . | . . . . Corruption Blocked . | . . . . Overload Shots . | . . . . Overflow Damage . | . . . . Projectiles . | . . . . Explosions . | . . . . Melee . | . . . . Knockbacks . | . . . . Impact . | . . . . Kinetic . | . . . . Secondary . | . . . . Self-Inflicted Damage . | . . . . Shots . | . . . . Rammed . | . . . . Targets Rammed . | . . . . Kicked . | . . . . Crushed . | . . . . Highest Temperature 60 | . 60 24 25 Average Temperature 11 | . 23 6 6 Received Heat Transfer 225 | . . . 225 Siege Activations . | . . . . Robots Corrupted . | . . . . Combat Hostiles . | . . . . Parts Fried . | . . . . Impact Corruptions . | . . . . Robots Melted . | . . . . Combat Hostiles . | . . . . Parts Melted . | . . . . Heat Transferred . | . . . . Parts Sabotaged . | . . . . Parts Stolen . | . . . . Parts Stripped . | . . . . Power Chain Reactions . | . . . . Alert | -11 -10 -9 -8 ------- Run | Yrd Mat Mat Mat Peak Influence 564 | 60 44 118 564 Initial 49 | . 39 18 49 Average 235 | 31 41 76 341 Maximum Alert Level 2 | . . . 2 Low Security (%) 43 | 100 100 100 10 Level 1 30 | . . . 47 Level 2 26 | . . . 41 Level 3 . | . . . . Level 4 . | . . . . Level 5 . | . . . . High Security . | . . . . Max Security . | . . . . Squads Dispatched 5 | . . 1 4 Investigation 1 | . . . 1 Extermination . | . . . . Reinforcement 4 | . . 1 3 Assault . | . . . . Garrison . | . . . . Intercept . | . . . . Searches Triggered . | . . . . Construction Impeded . | . . . . Haulers Reinforced . | . . . . Active Scanning Responses . | . . . . Cargo Convoy Interrupts . | . . . . Stealth | -11 -10 -9 -8 --------- Run | Yrd Mat Mat Mat Distress Signals 2 | . . . 2 Communications Jammed . | . . . . Distress Signals . | . . . . Times Spotted 42 | . . 4 38 Peak Tracking Total 10 | . . 3 10 Tactical Retreats 5 | . . . 5 Traps | -11 -10 -9 -8 ------- Run | Yrd Mat Mat Mat Traps Triggered . | . . . . Indirectly . | . . . . Trap Hack Attempts . | . . . . Triggered . | . . . . Disarmed . | . . . . Reprogrammed . | . . . . Reused . | . . . . Traps Extracted . | . . . . Installed . | . . . . Triggered . | . . . . Machines | -11 -10 -9 -8 ---------- Run | Yrd Mat Mat Mat Machines Disabled 3 | . . . 3 Max in Single Turn 1 | . . . 1 Machines Repaired . | . . . . Machines Dismantled . | . . . . Machines Sabotaged . | . . . . Overloaded Fab Kills . | . . . . Hacking | -11 -10 -9 -8 --------- Run | Yrd Mat Mat Mat Machines Accessed 10 | . . 4 6 Terminals 9 | . . 4 5 Fabricators . | . . . . Repair Stations . | . . . . Recycling Units 1 | . . . 1 Scanalyzers . | . . . . Garrison Access . | . . . . Total Hacks 29 | . . 14 15 Successful 13 | . . 6 7 Failed 16 | . . 8 8 Catastrophic 4 | . . 1 3 Database Lockouts . | . . . . Manual 26 | . . 14 12 Terminals 28 | . . 14 14 Fabricators . | . . . . Repair Stations . | . . . . Recycling Units 1 | . . . 1 Scanalyzers . | . . . . Garrison Access . | . . . . Terminal Hacks 4 | . . 3 1 Robot Analysis 1 | . . . 1 Level Access Points 1 | . . 1 . Terminal Index 2 | . . 2 . Fabricator Hacks . | . . . . Repair Station Hacks . | . . . . Recycling Unit Hacks 1 | . . . 1 Retrieve Components 1 | . . . 1 Scanalyzer . | . . . . Garrison Access Hacks . | . . . . Unauthorized Hacks 8 | . . 3 5 Terminals 8 | . . 3 5 Assimilate 1 | . . . 1 Botnet 7 | . . 3 4 Fabricators . | . . . . Repair Stations . | . . . . Recycling Units . | . . . . Scanalyzers . | . . . . Garrison Access . | . . . . Data Cores Recovered . | . . . . Used . | . . . . Hacking Detections 9 | . . 4 5 Full Trace Events 4 | . . 1 3 Feedback Events . | . . . . Feedback Blocked . | . . . . Robot Schematics Acquired . | . . . . Robots Built . | . . . . Authchips . | . . . . Time . | . . . . Total Robot Build Rating . | . . . . Part Schematics Acquired . | . . . . Parts Built . | . . . . Authchips . | . . . . Time . | . . . . Total Part Build Rating . | . . . . Parts Repaired . | . . . . Time . | . . . . Parts Recycled . | . . . . Recycled Matter . | . . . . Retrieved Matter . | . . . . Retrieved Components 2 | . . . 2 Parts Scanalyzed . | . . . . Part Schematics Acquired . | . . . . Parts Damaged . | . . . . Bothacking | -11 -10 -9 -8 ------------ Run | Yrd Mat Mat Mat Used RIF Installer . | . . . . Robots Hacked . | . . . . Non-combat . | . . . . Combat . | . . . . Robot Hacks Applied . | . . . . Relay Couplers Released . | . . . . Fabnet Peak Effective % . | . . . . Robots Rewired . | . . . . Allies Hacked . | . . . . Hacks Repelled . | . . . . Allies | -11 -10 -9 -8 -------- Run | Yrd Mat Mat Mat Total Allies 1 | . . . 1 Largest Group . | . . . . Highest-Rated Group . | . . . . Highest-Rated Ally . | . . . . Total Orders . | . . . . Ally Attacks . | . . . . Total Damage . | . . . . Kills . | . . . . Allies Corrupted . | . . . . Allies Melted . | . . . . Intel | -11 -10 -9 -8 ------- Run | Yrd Mat Mat Mat Robot Analysis Total 1 | . . . 1 Derelict Logs Recovered . | . . . . Drone Launches . | . . . . Drone Recoveries . | . . . . Exploration | -11 -10 -9 -8 ------------- Run | Yrd Mat Mat Mat Turns Passed 1791 | 287 108 259 1137 Spaces Moved 1175 | 173 103 230 669 Core 5 | 3 . . 2 Treads . | . . . . Legs . | . . . . Wheels 1170 | 170 103 230 667 Hover . | . . . . Flight . | . . . . Fastest Speed 50 | 50 80 80 50 Average Speed 80 | 79 80 80 80 Slowest Speed 95 | 80 80 80 95 Overloaded Moves . | . . . . Propulsion Burnouts . | . . . . Robots Hopped . | . . . . Cave-ins Triggered . | . . . . Exploration Rate (%) 25 | 5 24 14 58 Regions Visited 3 Branch Regions . Pre-discovered Areas . | . . . . Known Exits Taken 1 | . . 1 . Unknown Exits Taken 2 | 1 1 . . Scrap Searched . | . . . . Spaces Dug 10 | . 5 5 . Terrain Destroyed 10 | . 5 5 . Melee . | . . . . Projectile 10 | . 5 5 . AOE . | . . . . Terrain Rammed . | . . . . Walls Destroyed . | . . . . Machines Disabled . | . . . . Actions | -11 -10 -9 -8 --------- Run | Yrd Mat Mat Mat Total 1751 | 255 111 273 1112 Wait 325 | 19 . 14 292 Move 1172 | 172 102 229 669 Hop . | . . . . Pick Up 14 | 9 1 1 3 Fast Attach 23 | 7 . 5 11 Attach . | . . . . Detach 1 | . . . 1 Swap 28 | 3 1 5 19 Drop 36 | 7 1 6 22 Fire 152 | 38 6 13 95 Melee . | . . . . Ram . | . . . . Kick . | . . . . Crush . | . . . . Escape Stasis . | . . . . Rewire . | . . . . Trap . | . . . . Miscellaneous . | . . . . Route ------- -11/Scrapyard -10/Materials -9/Materials (discovered 3 exits: *Mat x3) -8/Materials (discovered 1 exit: [*Sto]) History --------- Turn | Location | Event 18 | -11/Scrapyard | Discovered new exit (range 14) 288 | -11/Scrapyard | Entered Materials 308 | -10/Materials | Build established: Mutant 372 | -10/Materials | Discovered new exit (range 4) 396 | -10/Materials | Entered another Materials area 396 | -9/Materials | Evolved 2 slots: Utility x2 455 | -9/Materials | Identified exit to Materials 655 | -9/Materials | Entered another Materials area 655 | -8/Materials | Evolved 2 slots: Utility x2 815 | -8/Materials | Destroyed 7 combat bots 847 | -8/Materials | Build established: Scavenger-Mutant 1771 | -8/Materials | Core integrity fell below 50% 1787 | -8/Materials | Core integrity fell below 20% 1790 | -8/Materials | Discovered new exit (range 6) 1792 | -8/Materials | Destroyed by H-61 Shepherd with Heavy Assault Cannon Last Messages --------------- 01784_ Acquired Gauss Rifle. 01784_ K-01 Serf collects debris. 01786_ Slug penetrates C-17 Slicer. 01786_ C-17 Slicer destroyed. 01786_ Wheel destroyed. 01786_ K-01 Serf collects debris. 01788_ Slug penetrates H-61 Shepherd. 01788_ K-01 Serf collects debris. 01788_ H-61 Shepherd calls for reinforcements. 01788_ ALERT: Hostile activity reported, dispatching reinforcements to area. 01788_ G-47 Trooper destroyed. 01789_ K-01 Serf collects debris. 01790_ Slug penetrates H-61 Shepherd. 01790_ Penetrated by Slug. 01790_ Gauss Rifle destroyed. 01790_ EXIT=FOUND 01791_ K-01 Serf collects debris. 01792_ Imp. Signal Interpreter destroyed. 01792_ Critical hit (Blast). Map ----- +----------------------------------------------------+ | ????????????????????????????????????????####### | | ????????????????????????????????????????## = | | | ????????????????????????????????????????## | | ???????????????????????????????####?????## [ | | ??????????????????????????????############[= | | ??????????????????????????????### ######## | | ??????????????????????????????## ## | | ??????????????????????????????## ##!=** | | ??????????????????????????????## ####+## | | ??????????????????????????????## # ! [ | | ??????????????????????????????## + | | ??????????????????????????????## # | | ????????????????????????? ###### ### ### | | ????????????????????????? ###### ### ### | | ????????????????#### # ### ### ##? | | ????????????????#######+#### #####+######## ##? | | ???????????????? # ####### ##? | | ???????????????? # * ##? | | ???????????????? # !=* = ####+## ##? | | ???????????????? # ##+############## # ### | | ???????????????? # ##%[["" ## # ! # ### | | ???????????????? # ##!k/"" ##????? # # # | | ???????????????? # ##/H%""]##????? # "" # # | | ???????????????? + ?##g=]==!##????? # "" # # | | ???????????????? # ?##=!*!* ##? # "T # # | | ????????????????## ?#@=][=! ##?##+### "" # # | | ????????????????# g #########?## + "" # # | | ???????????????## a g #########?## # # ### | | ???????????????## < ???????????## ###### ### | | ???????????????## ???????????## ##? | | ???????????????## ????????????##### #####? | | ???????????????#### ????????????#####+## #####? | | ??????????????? #?????????????## # ##???? | | ????????????????????????????????##""" # ###### | | ????????????????????????????????##""" # ###### | | ????????????????????????????????##""" + + | | ????????????????????????????????##""" # ## " | | ????????????????????????????????##""" # ## "" | | ????????????????????????????????## # ## "" | | ????????????????????????????????######## ## "" | | ????????????????????????????????######## ## " | | ??????????????????????????????????????## T# | | ??????????????????????????????????????## ## | | ??????????????????????????????????????## ## | | ???????????????????????????????????##### ###### | | ???????????????????????????????????##### ###### | | ???????????????????????????????????## ##?? | | ???????????????????????????????????##!!!!!!##?? | | ???????????????????????????????????##!!!!!!##?? | | ???????????????????????????????????##########?? | +----------------------------------------------------+ Best States ------------- Heat Dissipation 31 Energy Generation 14 Energy Capacity 360 Matter Stores 300 Matter Capacity 300 Sight Range 18 Robot Scan Range 14 Terrain Scan Range 16 Terrain Scan Density 110 Additional Mass Support 9 Armor Coverage 150 Utility Shielding 66 Evasion (%) 44 Item Schematics ----------------- None Robot Schematics ------------------ None Fabricated ------------ Nothing Alien Tech Used ----------------- None Achievements -------------- None Challenges ------------ None Game ------ Seed BackupZioniteArray Manual? 0 Play Time 00:26:02 Cumulative 39.2 hours Start 2024.04.18 @ 23:18:11 End 2024.04.18 @ 23:44:17 Sessions 1 Manual Loads 0 Difficulty Rogue Special Mode None Game No. 54 Rogue 39 Adventurer 0 Explorer 15 Win Type - Total 0 Types 0/0/0/0/0/0/0/0/0 Lore% 22 Gallery% 32 Achievement% 23 Wizard Run 0 Options --------- Layout 1 ASCII 0 Keyboard 0 Movement Mouse Keybinds 0 Fullscreen 1 Font 24/Smallcaps Map View 50x35 Zoom Use 0% Tactical HUD 1 Map Filters NONE Filters NONE Steam 1 RUN: 7236792f-86ee-4941-9ea9-0f03a3d3b004